Cogmind - Beta 13 @@@ ROGUE MODE // 2024.03.07 @ 23:23:33 Player: Minty Result: Destroyed by H-71 Marshal with Heavy Mass Driver Performance ------------- Evolutions (5) 2500 Regions Visited (14) 2800 Robots Destroyed (94) 470 Value Destroyed (4056) 4056 Prototype IDs (42) 840 Alien Tech Used (0) 0 Bonus (5819) 5819 TOTAL SCORE: 16485 Bonus ------- High Alert Combat Kills 763 Follower Combat Kills 2480 Entered DSFs 500 Network Hubs Disabled 600 Aligned with FarCom 300 Met Zhirov 300 Built Enhanced Grunts 300 A7 Reached Mainframe 300 Read Decrypted Archives 300 Friendly Fire -24 Cogmind --------- Core Integrity 0/1000 Matter 197/300 Energy 57/100 System Corruption 11% Temperature Cool (0) Movement Core (50) Location -5/Factory Parts ------- > --- POWER (2) -------- (None) > --- PROPULSION (3) --- Centrium Wheel Centrium Wheel Centrium Wheel > --- UTILITY (7) ------ Improved Signal Interpreter Graphene Brace Advanced System Shield > --- WEAPON (5) ------- (None) > --- INVENTORY (5) ---- Quantum Reactor Improved Recalibrator Advanced Drone Bay (2/2) Improved Arc Projector Peak State ------------ > --- POWER ------------ Quantum Reactor > --- PROPULSION ------- Flexi-carbon Leg Enhanced Flexi-carbon Leg Enhanced Flexi-carbon Leg > --- UTILITY ---------- Improved Heat Sink Improved Signal Interpreter Improved Launcher Guidance Computer Layered Light Armor Plating Graphene Brace Graphene Brace Advanced System Shield > --- WEAPON ----------- Cooled Plasma Rifle Advanced Variable Charge Gun Cooled Plasma Cannon Neutron Cannon Neutron Cannon > --- INVENTORY -------- Recoil Nullifier Kinecellerator Kinecellerator High-powered Shock Rifle Coil Gun [Rating: 101] Favorites ----------- Power Quantum Reactor Engine Deuterium Engine Power Core Fission Core Reactor Quantum Reactor Propulsion Enhanced Flexi-carbon Leg Treads Light Treads Leg Enhanced Flexi-carbon Leg Wheel Compact Wheel Hover Unit Backup Propulsion I Flight Unit Nuclear Pulse Thruster Utility Medium Storage Unit Device Graphene Brace Storage Medium Storage Unit Processor Improved Terrain Scan Processor Hackware Advanced System Shield Protection Improved Light Armor Plating Weapon Advanced Variable Charge Gun Energy Gun Advanced Variable Charge Gun Energy Cannon Neutron Cannon Ballistic Gun Coil Gun Ballistic Cannon Flak Cannon Launcher Heavy Shock Bomb Launcher Special Weapon Field Lobotomy Kit Impact Weapon Great Maul Slashing Weapon Phasing Sabre Build | -11 -10 -9 -9 -9 -8 -8 -7 -7 -6 -6 -6 -6 -6 -5 ------- Run | Yrd Mat Mat Min Exi Min Mat Fac DSF Fac Ext Cet Arc Hub Fac Slots Evolved 10 | . . 2 . . . 2 2 . 2 . . . . 2 Power 1 | . . . . . . . 1 . . . . . . . Propulsion 1 | . . . . . . . 1 . . . . . . . Utility 5 | . . 1 . . . 2 . . 1 . . . . 1 Weapon 3 | . . 1 . . . . . . 1 . . . . 1 Parts Attached 195 | . 8 18 11 2 3 29 . 11 14 26 10 . 18 45 Power 20 | . 2 2 . . . 2 . . . 4 4 . 3 3 Engine 9 | . 2 2 . . . 1 . . . 2 1 . 1 . Core 5 | . . . . . . 1 . . . 2 . . . 2 Reactor 6 | . . . . . . . . . . . 3 . 2 1 Propulsion 38 | . 2 4 3 . 2 2 . 4 4 8 1 . 3 5 Treads 12 | . . . . . . 1 . 1 1 8 1 . . . Leg 15 | . 2 4 . . 1 . . 3 . . . . 3 2 Wheel 8 | . . . 2 . 1 1 . . 1 . . . . 3 Hover 2 | . . . 1 . . . . . 1 . . . . . Flight 1 | . . . . . . . . . 1 . . . . . Utility 66 | . 3 2 8 1 . 11 . 3 3 5 3 . 9 18 Device 42 | . 2 2 5 . . 5 . 2 3 2 2 . 5 14 Storage 3 | . 1 . . 1 . 1 . . . . . . . . Processor 5 | . . . 1 . . 1 . . . . . . 1 2 Hackware 1 | . . . . . . . . . . . . . . 1 Protection 15 | . . . 2 . . 4 . 1 . 3 1 . 3 1 Artifact . | . . . . . . . . . . . . . . . Weapon 71 | . 1 10 . 1 1 14 . 4 7 9 2 . 3 19 Energy Gun 37 | . 1 7 . . . 11 . . 1 4 2 . . 11 Energy Cannon 12 | . . . . . . . . . 4 . . . 3 5 Ballistic Gun 12 | . . 3 . . 1 1 . 3 1 2 . . . 1 Ballistic Cannon 1 | . . . . . . 1 . . . . . . . . Launcher 2 | . . . . . . . . . . . . . . 2 Special Weapon 3 | . . . . 1 . . . 1 . 1 . . . . Impact Weapon 3 | . . . . . . 1 . . 1 1 . . . . Slashing Weapon 1 | . . . . . . . . . . 1 . . . . Piercing Weapon . | . . . . . . . . . . . . . . . Special Melee Weapon . | . . . . . . . . . . . . . . . Unidentified Prototypes 14 | . . 1 1 . . 3 . . 2 . 3 . 3 1 Corrupted Parts 1 | . . . . . . . . . . . . . 1 . System Corruption 4 | . . . . . . . . . . . . . 4 . Parts Lost 53 | . 1 1 9 . . 1 . 9 . 10 . . 7 15 Power 7 | . 1 1 1 . . . . 1 . 1 . . 1 1 Propulsion 14 | . . . 4 . . . . 2 . 4 . . 1 3 Utility 14 | . . . 1 . . 1 . 2 . 3 . . 3 4 Weapon 18 | . . . 3 . . . . 4 . 2 . . 2 7 Highest Loss Streak 11 | . 1 1 8 . . 1 . 9 . 6 . . 7 11 To Critical Strikes . | . . . . . . . . . . . . . . . Average Slot Usage (%) 76 | . 93 98 23 22 29 92 . 56 56 86 93 93 87 75 Engine 3 | . 13 11 . . . 6 . 4 . 5 2 . . . Core 1 | . . . . . . 1 . . . 3 . . . 1 Reactor 2 | . . . . . . . . . . . 10 13 11 4 Treads 6 | . . . . . . 8 . 5 2 17 13 13 12 . Leg 6 | . 28 21 1 . 2 . . 1 4 . . . . 12 Wheel 1 | . . . 2 . 3 8 . 3 3 . . . . . Device 14 | . 7 21 3 11 11 11 . 14 11 13 14 20 18 16 Storage 6 | . 14 11 4 6 11 9 . 7 6 6 6 6 5 . Processor 3 | . . . 6 5 . 2 . 7 6 6 4 . . 6 Protection 5 | . . . 1 . . 17 . . . 5 13 13 11 2 Energy Gun 13 | . 23 28 1 . . 17 . 7 4 14 13 13 12 13 Energy Cannon 1 | . . . . . . . . . 5 . . . . 7 Ballistic Gun 3 | . 4 3 . . 2 5 . 4 1 1 13 13 11 . Impact Weapon 1 | . . . . . . 1 . . . 5 . . . . Naked Turns . | . . . . . . . . . . . . . . . Heaviest Build 84 | 11 21 27 22 18 20 40 30 40 42 57 83 83 84 75 Greatest Support 100 | 20 20 20 20 3 16 22 16 60 60 76 100 100 100 76 Greatest Overweight (x) 7 | . 1 1 3 5 5 2 1 3 7 3 . . 4 2 Average Overweight (x) . | . . . . 3 3 1 1 1 2 . . . . . Largest Inventory Capacity 10 | . 10 10 10 10 10 10 10 10 10 10 10 10 10 5 Average Capacity 8 | . 9 10 7 7 10 10 10 10 10 10 10 10 9 5 Most Carried 10 | . 10 10 10 5 8 10 10 10 10 10 10 9 10 5 Average Carried 7 | . 9 9 6 4 5 9 10 9 9 9 9 9 9 4 Final Capacity 10 | 8 10 10 5 10 10 10 10 10 10 10 10 10 5 5 Final Carried 10 | 6 10 9 5 5 8 10 10 10 10 10 9 9 5 5 Class Distribution -------------------- 35% | Scavenger-Tank 25% | Mutant 10% | Assassin 7% | Scavenger-Gunner 5% | Skirmisher 4% | Tank 3% | Scavenger-Mutant Dominant Class ---------------- Mutant | -10/Materials Scavenger-Gunner | -9/Materials Mutant | -9/Mines Mutant | -9/Exiles Mutant | -8/Mines Tank | -8/Materials Tank | -7/Factory Mutant | -7/DSF Skirmisher | -6/Factory Assassin | -6/Extension Scavenger-Tank | -6/Cetus Scavenger-Tank | -6/Archives Scavenger-Tank | -6/Hub_04(d) Scavenger-Tank | -5/Factory Resources | -11 -10 -9 -9 -9 -8 -8 -7 -7 -6 -6 -6 -6 -6 -5 ----------- Run | Yrd Mat Mat Min Exi Min Mat Fac DSF Fac Ext Cet Arc Hub Fac Matter Collected 2274 | 200 69 149 42 . 42 471 . 84 13 387 192 . 274 351 Remotely 20 | . 20 . . . . . . . . . . . . . Salvage Created 4617 | . 516 275 44 . . 903 . 189 13 1008 103 . 367 1199 Parts 168 | . 23 16 . . . 42 . 12 2 20 1 . 13 39 Haulers Intercepted 5 | . 1 1 . . . 2 . . . . . . . 1 Recyclers Shooed 1 | . . . 1 . . . . . . . . . . . Parts Field Recycled . | . . . . . . . . . . . . . . . Retrieved Matter . | . . . . . . . . . . . . . . . Parts Self-Destructed . | . . . . . . . . . . . . . . . Prevented . | . . . . . . . . . . . . . . . Kills | -11 -10 -9 -9 -9 -8 -8 -7 -7 -6 -6 -6 -6 -6 -5 ------- Run | Yrd Mat Mat Min Exi Min Mat Fac DSF Fac Ext Cet Arc Hub Fac Combat Hostiles Destroyed 77 | . 8 5 1 . . 15 . 9 . 14 2 . 7 16 Melee 6 | . . . . . . . . . . 5 . . 1 . Guns 53 | . 5 5 1 . . 8 . 9 . 6 2 . 6 11 Cannons 9 | . . . . . . 4 . . . . . . . 5 AOE 2 | . . . . . . 2 . . . . . . . . Classes Destroyed 21 | . 5 1 1 . . 4 . 3 1 2 . . 2 2 Worker 5 | . 1 . 1 . . 1 . . . . . . . 2 Builder 2 | . . . . . . 1 . . . 1 . . . . Tunneler 1 | . . . . . . . . . 1 . . . . . Hauler 5 | . 1 1 . . . 2 . . . . . . . 1 Recycler 3 | . 1 . . . . 1 . . . 1 . . . . Mechanic 1 | . . . . . . . . . . . . . . 1 Operator 1 | . 1 . . . . . . . . . . . . . Watcher 4 | . . . . . . . . . . 1 . . 1 2 Swarmer 6 | . . . 1 . . 1 . . . . 1 . . 3 Cutter 3 | . . . . . . . . 3 . . . . . . Saboteur 1 | . . . . . . . . . . . . . 1 . Grunt 40 | . 8 4 . . . 11 . . . 5 1 . 4 7 Brawler 1 | . . . . . . . . . . . . . . 1 Duelist 2 | . . . . . . 1 . . . . . . . 1 Sentry 10 | . . 1 . . . . . . . 7 . . 1 1 Specialist 1 | . . . . . . . . 1 . . . . . . Hunter 2 | . . . . . . 1 . . . 1 . . . . Programmer 3 | . . . . . . . . . . . . . 1 2 Heavy 2 | . . . . . . 1 . . . . . . . 1 Behemoth 1 | . . . . . . . . . . 1 . . . . Assembled 5 | . . . . . . . . 5 . . . . . . Best Kill Streak 9 | . 3 2 1 . . 4 . 9 1 2 1 . 3 5 Combat Bots Only 9 | . 3 2 1 . . 2 . 9 . 2 1 . 3 5 Max Kills in Single Turn 2 | . 2 1 1 . . 2 . 2 1 1 1 . 1 1 Gunslinging 1 | . 1 . . . . . . 1 . . . . . . Exploded 1 | . . . . . . 1 . . . . . . . . Melee 1 | . . . . . . . . . . 1 . . 1 . Uniques/NPCs Destroyed . | . . . . . . . . . . . . . . . Combat | -11 -10 -9 -9 -9 -8 -8 -7 -7 -6 -6 -6 -6 -6 -5 -------- Run | Yrd Mat Mat Min Exi Min Mat Fac DSF Fac Ext Cet Arc Hub Fac Hostile Shots Fired 979 | . 49 36 107 . 6 68 . 70 . 286 15 . 61 281 Missed 301 | . 20 12 35 . 1 19 . 11 . 88 3 . 10 102 Damage Taken 11905 | . 340 300 683 . 73 983 . 1816 . 2297 196 . 1744 3473 Core 2674 | . 33 20 209 . 13 205 . 579 . 306 16 . 254 1039 Absorbed by Shields 321 | . . . . . . . . . . 63 101 . . 157 Redirected to Shielding 217 | . . . . . . 154 . 63 . . . . . . Regen/Repaired (Parts) 59 | . . 59 . . . . . . . . . . . . Core Remaining (%) 56 | 100 86 . . . 39 62 . 17 . . . . 32 . Volleys Fired 230 | . 41 16 3 . . 39 . 13 1 37 8 . 21 51 Largest 5 | . 2 3 3 . . 3 . 3 2 4 4 . 4 5 Hottest 597 | . 100 155 155 . . 185 . 172 120 191 540 . 220 597 Shots Fired 623 | . 82 36 7 . . 102 . 35 2 80 29 . 78 172 Gun 541 | . 82 36 7 . . 87 . 34 1 77 29 . 78 110 Cannon 77 | . . . . . . 15 . . 1 1 . . . 60 Launcher 2 | . . . . . . . . . . . . . . 2 Special 3 | . . . . . . . . 1 . 2 . . . . Kinetic 134 | . 9 7 . . . 36 . 12 . 7 16 . 42 5 Thermal 406 | . 73 12 3 . . 45 . 14 2 61 13 . 36 147 Explosive . | . . . . . . . . . . . . . . . Electromagnetic 80 | . . 17 4 . . 21 . 8 . 10 . . . 20 Robot Hit Streak 13 | . 11 11 2 . . 11 . 8 3 13 12 . 7 10 Robot Miss Streak 10 | . 2 2 5 . . 10 . 3 . 1 3 . 6 4 Penetration Max 1 | . . . . . . . . 1 . . . . 1 . Secondary Targets 13 | . 3 1 1 . . 1 . 2 . 1 . . 2 2 Max Gunslinging Chain 1 | . 1 1 1 . . 1 . 1 . 1 . . 1 1 Shots Hit Robots 412 | . 57 23 6 . . 73 . 23 1 86 12 . 38 93 Core Hits 191 | . 23 14 4 . . 43 . 16 1 27 7 . 14 42 Critical Kills 2 | . . . . . . . . . . 2 . . . . Critical Parts Destroyed 10 | . . . . . . 1 . . . 8 . . 1 . Critical Strikes 39 | . 10 1 . . . 4 . 1 . 20 . . 1 2 Burn 26 | . 10 1 . . . 3 . 1 . 9 . . . 2 Destroy 1 | . . . . . . . . . . . . . 1 . Smash 12 | . . . . . . 1 . . . 11 . . . . Melee Attacks 43 | . . . . . . 9 . . 1 33 . . . . Impact 39 | . . . . . . 9 . . 1 29 . . . . Slashing 4 | . . . . . . . . . . 4 . . . . Piercing . | . . . . . . . . . . . . . . . Sneak Attacks 2 | . . . . . . . . . . 2 . . . . Combat Hostiles . | . . . . . . . . . . . . . . . Follow-up Attacks . | . . . . . . . . . . . . . . . Damage Inflicted 10107 | . 688 312 122 . 3 1644 . 449 22 2271 358 . 1100 3138 Guns 6587 | . 684 312 61 . . 919 . 447 22 1135 358 . 1065 1584 Cannons 1465 | . . . . . . 253 . . . 32 . . . 1180 Explosions 529 | . . . . . . 249 . . . . . . . 280 Melee 1326 | . . . . . . 222 . . . 1104 . . . . Ramming 200 | . 4 . 61 . 3 1 . 2 . . . . 35 94 Kinetic 1538 | . 47 63 . . . 414 . 212 . 101 195 . 468 38 Thermal 5958 | . 637 138 25 . . 694 . 140 22 914 163 . 597 2628 Explosive . | . . . . . . . . . . . . . . . Electromagnetic 1085 | . . 111 36 . . 313 . 95 . 152 . . . 378 Impact 1203 | . . . . . . 222 . . . 981 . . . . Slashing 123 | . . . . . . . . . . 123 . . . . Piercing . | . . . . . . . . . . . . . . . Highest Corruption 13 | . 2 . . . . . . . . . . . 13 11 Average Corruption 3 | . 2 . . . . . . . . . . . 2 4 Corruption Purged 4 | . . . . . . . . . . . . . . 4 Corruption Blocked . | . . . . . . . . . . . . . . . Effects 16 | . 1 . . . . . . . . . . . 5 10 Message Errors 2 | . . . . . . . . . . . . . . 2 Matter Fused 5 | . . . . . . . . . . . . . 1 4 Heat Flow Errors 1 | . . . . . . . . . . . . . 1 . Energy Discharges 2 | . . . . . . . . . . . . . 1 1 Parts Rejected 2 | . . . . . . . . . . . . . 1 1 Data Loss (minor) 2 | . 1 . . . . . . . . . . . . 1 Alerts 1 | . . . . . . . . . . . . . 1 . Misdirections 1 | . . . . . . . . . . . . . . 1 Overload Shots 10 | . . . . . . . . . . . 2 . . 8 Effects 1 | . . . . . . . . . . . . . . 1 Energy Bleed 1 | . . . . . . . . . . . . . . 1 Overflow Damage 646 | . . . . . . 54 . . . 463 . . . 129 Projectiles 117 | . . . . . . . . . . . . . . 117 Explosions 16 | . . . . . . 16 . . . . . . . . Melee 513 | . . . . . . 38 . . . 463 . . . 12 Knockbacks 11 | . . . . . . 7 . . . 3 . . . 1 Impact 4 | . . . . . . . . . . 3 . . . 1 Kinetic 7 | . . . . . . 7 . . . . . . . . Secondary . | . . . . . . . . . . . . . . . Self-Inflicted Damage 420 | . . . 28 . 1 85 . . . . . . 211 95 Shots 7 | . . . . . . 2 . . . . . . 2 3 Rammed 20 | . . . 11 . 1 1 . 1 . . . . 3 3 Targets Rammed 29 | . 3 . 11 . 1 1 . 1 . . . . 3 9 Kicked 9 | . 3 . . . . . . . . . . . . 6 Crushed . | . . . . . . . . . . . . . . . Highest Temperature 440 | . 435 93 51 . . 270 . . 15 389 402 . 198 440 Average Temperature 99 | . 135 34 24 . . 51 . . 10 101 123 . 69 131 Received Heat Transfer 2143 | . 189 120 147 . . 297 . 72 . 601 34 . 174 509 Effects 10 | . 2 . . . . 1 . . . 5 . . . 2 Shutdowns 2 | . 1 . . . . . . . . 1 . . . . Energy Bleed 1 | . . . . . . 1 . . . . . . . . Interference 4 | . . . . . . . . . . 4 . . . . Damage (minor) 1 | . 1 . . . . . . . . . . . . . Damage (major) 2 | . . . . . . . . . . . . . . 2 Siege Activations . | . . . . . . . . . . . . . . . Robots Corrupted 1 | . . . . . . . . . . 1 . . . . Combat Hostiles 1 | . . . . . . . . . . 1 . . . . Parts Fried 17 | . . . . . . . . . . 14 . . . 3 Impact Corruptions 17 | . . . . . . 1 . . . 14 . . . 2 Robots Melted 4 | . 4 . . . . . . . . . . . . . Combat Hostiles 3 | . 3 . . . . . . . . . . . . . Parts Melted 24 | . 7 1 . . . 3 . . . 2 . . 1 10 Heat Transferred 11695 | . 2627 354 30 . . 1397 . 333 37 2479 222 . 703 3513 Parts Sabotaged 6 | . . . . . . . . . . . . . 3 3 Parts Stolen . | . . . . . . . . . . . . . . . Parts Stripped . | . . . . . . . . . . . . . . . Power Chain Reactions 6 | . . . . . . 4 . . . . . . . 2 Alert | -11 -10 -9 -9 -9 -8 -8 -7 -7 -6 -6 -6 -6 -6 -5 ------- Run | Yrd Mat Mat Min Exi Min Mat Fac DSF Fac Ext Cet Arc Hub Fac Peak Influence 1774 | . 217 122 91 . . 359 163 197 87 514 1156 662 1774 1193 Initial 790 | . . 33 21 . . . 163 117 67 42 287 438 231 790 Average 517 | . 107 55 60 . . 101 163 149 80 182 676 530 1440 1044 Maximum Alert Level 5 | . 1 . . . . 1 . . . 2 4 2 5 4 Low Security (%) 47 | . 71 100 100 . 100 87 100 100 100 58 . . . . Level 1 10 | . 28 . . . . 12 . . . 37 9 . 1 . Level 2 4 | . . . . . . . . . . 4 30 100 6 . Level 3 20 | . . . . . . . . . . . 59 . 3 74 Level 4 13 | . . . . . . . . . . . . . 65 25 Level 5 2 | . . . . . . . . . . . . . 23 . High Security . | . . . . . . . . . . . . . . . Max Security . | . . . . . . . . . . . . . . . Squads Dispatched 42 | . 4 2 . . 1 5 . 2 1 4 2 . 9 12 Investigation 17 | . 1 1 . . . 4 . . . 2 2 . 4 3 Extermination 4 | . . . . . . . . . 1 . . . 1 2 Reinforcement 16 | . 3 1 . . 1 1 . 2 . 2 . . 2 4 Assault 5 | . . . . . . . . . . . . . 2 3 Garrison . | . . . . . . . . . . . . . . . Intercept . | . . . . . . . . . . . . . . . Searches Triggered . | . . . . . . . . . . . . . . . Construction Impeded 3 | . . . . . 1 . . . . . . . 1 1 Haulers Reinforced 1 | . . . . . . . . . . . . . . 1 Active Scanning Responses . | . . . . . . . . . . . . . . . Cargo Convoy Interrupts . | . . . . . . . . . . . . . . . Stealth | -11 -10 -9 -9 -9 -8 -8 -7 -7 -6 -6 -6 -6 -6 -5 --------- Run | Yrd Mat Mat Min Exi Min Mat Fac DSF Fac Ext Cet Arc Hub Fac Distress Signals 17 | . . 2 . . . 4 . . . 5 1 . 4 1 Communications Jammed . | . . . . . . . . . . . . . . . Distress Signals . | . . . . . . . . . . . . . . . Times Spotted 255 | . 13 15 9 . 1 26 . 38 . 46 21 5 33 48 Peak Tracking Total 14 | . 3 3 6 . 1 5 . 14 1 7 5 9 11 7 Tactical Retreats 28 | . . 4 4 . . 2 . 1 . 8 . . 2 7 Traps | -11 -10 -9 -9 -9 -8 -8 -7 -7 -6 -6 -6 -6 -6 -5 ------- Run | Yrd Mat Mat Min Exi Min Mat Fac DSF Fac Ext Cet Arc Hub Fac Traps Triggered 12 | . 1 6 . . . . . . 1 . . . . 4 Indirectly . | . . . . . . . . . . . . . . . Trap Hack Attempts . | . . . . . . . . . . . . . . . Triggered . | . . . . . . . . . . . . . . . Disarmed . | . . . . . . . . . . . . . . . Reprogrammed . | . . . . . . . . . . . . . . . Reused . | . . . . . . . . . . . . . . . Traps Extracted . | . . . . . . . . . . . . . . . Installed . | . . . . . . . . . . . . . . . Triggered . | . . . . . . . . . . . . . . . Machines | -11 -10 -9 -9 -9 -8 -8 -7 -7 -6 -6 -6 -6 -6 -5 ---------- Run | Yrd Mat Mat Min Exi Min Mat Fac DSF Fac Ext Cet Arc Hub Fac Machines Disabled 33 | . . . 1 . . 2 . . 1 6 3 1 12 7 Max in Single Turn 5 | . . . 1 . . 1 . . 1 1 2 . 4 5 Garrison Access 1 | . . . . . . . . . . . . . 1 . Network Hub 3 | . . . . . . . . . . . . . 3 . Machines Repaired . | . . . . . . . . . . . . . . . Machines Dismantled . | . . . . . . . . . . . . . . . Machines Sabotaged 2 | . . . . . . . . . . . . . 1 1 Overloaded Fab Kills . | . . . . . . . . . . . . . . . Hacking | -11 -10 -9 -9 -9 -8 -8 -7 -7 -6 -6 -6 -6 -6 -5 --------- Run | Yrd Mat Mat Min Exi Min Mat Fac DSF Fac Ext Cet Arc Hub Fac Machines Accessed 37 | . 3 3 1 2 . 4 1 . 1 4 2 1 4 11 Terminals 23 | . 3 1 . . . 3 1 . . 4 2 . 3 6 Fabricators 3 | . . . . . . . . . . . . . . 3 Repair Stations 3 | . . 2 . . . . . . 1 . . . . . Recycling Units 1 | . . . . . . . . . . . . . . 1 Scanalyzers 2 | . . . . . . 1 . . . . . . . 1 Garrison Access 1 | . . . . . . . . . . . . . 1 . Total Hacks 159 | . 11 7 1 2 . 16 1 . 2 10 9 25 16 59 Successful 77 | . 6 4 1 2 . 9 1 . . 3 1 25 4 21 Failed 82 | . 5 3 . . . 7 . . 2 7 8 . 12 38 Catastrophic 20 | . 1 . . . . 1 . . 1 1 4 . . 12 Database Lockouts . | . . . . . . . . . . . . . . . Manual 68 | . 4 2 . 1 . 8 . . . . 1 . 13 39 Terminals 91 | . 11 2 . . . 13 1 . . 10 9 . 14 31 Fabricators 21 | . . . . . . . . . . . . . . 21 Repair Stations 7 | . . 5 . . . . . . 2 . . . . . Recycling Units 2 | . . . . . . . . . . . . . . 2 Scanalyzers 8 | . . . . . . 3 . . . . . . . 5 Garrison Access 2 | . . . . . . . . . . . . . 2 . Terminal Hacks 53 | . 5 . 1 2 . 4 1 . . 3 1 25 2 9 Record 27 | . . . . 1 . . . . . . 1 25 . . Prototype ID Bank 4 | . 3 . . . . 1 . . . . . . . . Open Door 4 | . . . 1 . . . . . . 3 . . . . Open DSF 2 | . . . . . . . 1 . . . . . . 1 Level Access Points 1 | . 1 . . . . . . . . . . . . . Branch Access Points 1 | . . . . . . . . . . . . . . 1 Emergency Access Points 1 | . . . . . . 1 . . . . . . . . Terminal Index 1 | . . . . . . . . . . . . . 1 . Alert Level 5 | . . . . . . . . . . . . . 1 4 Locate Traps 2 | . . . . . . . . . . . . . . 2 Dispatch Records 1 | . . . . . . . . . . . . . . 1 Maintenance Status 1 | . . . . . . 1 . . . . . . . . Registered Prototypes 1 | . 1 . . . . . . . . . . . . . Zone Layout 1 | . . . . . . 1 . . . . . . . . Derelict Proto ID Bank 1 | . . . . 1 . . . . . . . . . . Fabricator Hacks 3 | . . . . . . . . . . . . . . 3 Network Status 1 | . . . . . . . . . . . . . . 1 Load Schematic 1 | . . . . . . . . . . . . . . 1 Build 1 | . . . . . . . . . . . . . . 1 Repair Station Hacks 3 | . . 3 . . . . . . . . . . . . Scan Component 2 | . . 2 . . . . . . . . . . . . Repair 1 | . . 1 . . . . . . . . . . . . Recycling Unit Hacks 2 | . . . . . . . . . . . . . . 2 Report Inventory 1 | . . . . . . . . . . . . . . 1 Retrieve Components 1 | . . . . . . . . . . . . . . 1 Scanalyzer 6 | . . . . . . 3 . . . . . . . 3 Insert Component 3 | . . . . . . 2 . . . . . . . 1 Analyze 3 | . . . . . . 1 . . . . . . . 2 Garrison Access Hacks . | . . . . . . . . . . . . . . . Unauthorized Hacks 10 | . 1 1 . . . 2 . . . . . . 2 4 Terminals 9 | . 1 1 . . . 2 . . . . . . 2 3 Botnet 7 | . 1 1 . . . 2 . . . . . . 1 2 Sabotage 2 | . . . . . . . . . . . . . 1 1 Fabricators 1 | . . . . . . . . . . . . . . 1 Overload 1 | . . . . . . . . . . . . . . 1 Repair Stations . | . . . . . . . . . . . . . . . Recycling Units . | . . . . . . . . . . . . . . . Scanalyzers . | . . . . . . . . . . . . . . . Garrison Access . | . . . . . . . . . . . . . . . Data Cores Recovered . | . . . . . . . . . . . . . . . Used . | . . . . . . . . . . . . . . . Hacking Detections 28 | . 3 3 . . . 4 1 . 1 3 3 . 3 7 Full Trace Events 15 | . 3 . . . . 4 . . . 2 2 . 3 1 Feedback Events . | . . . . . . . . . . . . . . . Feedback Blocked . | . . . . . . . . . . . . . . . Robot Schematics Acquired . | . . . . . . . . . . . . . . . Robots Built . | . . . . . . . . . . . . . . . Authchips . | . . . . . . . . . . . . . . . Time . | . . . . . . . . . . . . . . . Total Robot Build Rating . | . . . . . . . . . . . . . . . Part Schematics Acquired 2 | . . . . . . 1 . . . . . . . 1 Parts Built 1 | . . . . . . . . . . . . . . 1 Authchips . | . . . . . . . . . . . . . . . Time 17 | . . . . . . . . . . . . . . 17 Total Part Build Rating 1 | . . . . . . . . . . . . . . 1 Parts Repaired 1 | . . 1 . . . . . . . . . . . . Time 26 | . . 26 . . . . . . . . . . . . Parts Recycled . | . . . . . . . . . . . . . . . Recycled Matter . | . . . . . . . . . . . . . . . Retrieved Matter . | . . . . . . . . . . . . . . . Retrieved Components 1 | . . . . . . . . . . . . . . 1 Parts Scanalyzed 2 | . . . . . . 1 . . . . . . . 1 Part Schematics Acquired 2 | . . . . . . 1 . . . . . . . 1 Parts Damaged . | . . . . . . . . . . . . . . . Bothacking | -11 -10 -9 -9 -9 -8 -8 -7 -7 -6 -6 -6 -6 -6 -5 ------------ Run | Yrd Mat Mat Min Exi Min Mat Fac DSF Fac Ext Cet Arc Hub Fac Used RIF Installer . | . . . . . . . . . . . . . . . Robots Hacked . | . . . . . . . . . . . . . . . Non-combat . | . . . . . . . . . . . . . . . Combat . | . . . . . . . . . . . . . . . Robot Hacks Applied . | . . . . . . . . . . . . . . . Relay Couplers Released 1 | . . . . . . . . . . . . . 1 . Machine Destruction 1 | . . . . . . . . . . . . . 1 . Fabnet Peak Effective % . | . . . . . . . . . . . . . . . Robots Rewired 23 | . . . . . . . . . . 23 . . . . Allies Hacked . | . . . . . . . . . . . . . . . Hacks Repelled . | . . . . . . . . . . . . . . . Allies | -11 -10 -9 -9 -9 -8 -8 -7 -7 -6 -6 -6 -6 -6 -5 -------- Run | Yrd Mat Mat Min Exi Min Mat Fac DSF Fac Ext Cet Arc Hub Fac Total Allies 37 | . . . . . . . . 1 . 31 5 . . . Largest Group 13 | . . . . . . . . 1 . 13 13 12 10 . Highest-Rated Group 813 | . . . . . . . . 90 . 562 813 779 600 . Highest-Rated Ally 159 | . . . . . . . . 90 . 159 159 159 96 . Total Orders 3 | . . . . . . 1 . . 1 1 . . . . FOLLOW 1 | . . . . . . 1 . . . . . . . . EXPLORE 2 | . . . . . . . . . 1 1 . . . . Ally Attacks 424 | . . . . . 1 1 . 6 . 136 123 36 121 . Total Damage 12940 | . . . . . . . . 194 . 3583 3073 1256 4834 . Kills 85 | . . . . . . . . 4 . 23 24 6 28 . Allies Corrupted . | . . . . . . . . . . . . . . . Allies Melted . | . . . . . . . . . . . . . . . Field Lobotomies 2 | . . . . . . . . 1 . 1 . . . . Intel | -11 -10 -9 -9 -9 -8 -8 -7 -7 -6 -6 -6 -6 -6 -5 ------- Run | Yrd Mat Mat Min Exi Min Mat Fac DSF Fac Ext Cet Arc Hub Fac Robot Analysis Total . | . . . . . . . . . . . . . . . Derelict Logs Recovered 1 | . . . 1 . . . . . . . . . . . Drone Launches 9 | . . . . . 1 1 . 2 1 2 . . 2 . Drone Recoveries 2 | . . . . . . . . . 1 1 . . . . Exploration | -11 -10 -9 -9 -9 -8 -8 -7 -7 -6 -6 -6 -6 -6 -5 ------------- Run | Yrd Mat Mat Min Exi Min Mat Fac DSF Fac Ext Cet Arc Hub Fac Turns Passed 7948 | . 521 723 254 543 261 757 7 152 313 1332 454 93 873 1665 Spaces Moved 4322 | 1 310 278 268 261 119 410 7 61 200 468 161 47 518 1213 Core 989 | . . . 194 261 60 . . 10 3 . . . 84 377 Treads 1084 | . . . . . . 19 . 18 3 402 161 47 434 . Legs 1480 | 1 310 278 2 . . . . 7 48 . . . . 834 Wheels 715 | . . . 41 . 59 391 7 26 123 66 . . . 2 Hover 31 | . . . 31 . . . . . . . . . . . Flight 23 | . . . . . . . . . 23 . . . . . Fastest Speed 50 | 120 120 120 50 150 115 115 115 115 110 110 160 160 50 50 Average Speed 136 | 120 121 188 73 207 208 130 115 145 138 158 160 160 143 107 Slowest Speed 400 | 120 190 190 200 300 300 225 115 200 400 240 160 160 250 260 Overloaded Moves . | . . . . . . . . . . . . . . . Propulsion Burnouts . | . . . . . . . . . . . . . . . Robots Hopped . | . . . . . . . . . . . . . . . Cave-ins Triggered . | . . . . . . . . . . . . . . . Exploration Rate (%) 45 | 2 50 28 69 62 39 26 . 67 3 72 71 72 43 34 Regions Visited 14 Branch Regions 7 Pre-discovered Areas 1 | . . . . 1 . . . . . . . . . . Known Exits Taken 3 | . 1 . . . . . 1 . . . . . 1 . Unknown Exits Taken 10 | 1 . 1 1 1 1 1 . . 1 1 1 1 . . Scrap Searched 2 | . . . 1 . 1 . . . . . . . . . Spaces Dug . | . . . . . . . . . . . . . . . Terrain Destroyed 443 | . . . . . . 16 . 1 . . 1 . 331 94 Melee . | . . . . . . . . . . . . . . . Projectile 31 | . . . . . . . . 1 . . 1 . 6 23 AOE 412 | . . . . . . 16 . . . . . . 325 71 Terrain Rammed . | . . . . . . . . . . . . . . . Walls Destroyed . | . . . . . . . . . . . . . . . Machines Disabled . | . . . . . . . . . . . . . . . Actions | -11 -10 -9 -9 -9 -8 -8 -7 -7 -6 -6 -6 -6 -6 -5 --------- Run | Yrd Mat Mat Min Exi Min Mat Fac DSF Fac Ext Cet Arc Hub Fac Total 5797 | . 376 445 320 265 128 534 6 95 230 922 344 65 603 1464 Wait 518 | . 1 124 15 . 3 14 . 3 1 79 149 19 26 84 Move 4308 | . 309 277 267 260 118 409 6 60 199 467 160 46 517 1213 Hop . | . . . . . . . . . . . . . . . Pick Up 51 | . 6 3 1 1 3 8 . . 1 7 3 . 1 17 Fast Attach 126 | . 4 13 6 1 3 18 . 7 14 14 4 . 10 32 Attach 38 | . . 3 4 1 . 5 . 4 . 7 1 . 3 10 Detach 30 | . 2 1 3 1 . 4 . 4 . 3 2 . 4 6 Swap 31 | . 4 2 1 . . 6 . . . 5 5 . 5 3 Drop 118 | . 6 6 9 1 . 21 . 3 9 11 12 . 13 27 Fire 230 | . 41 16 3 . . 39 . 13 1 37 8 . 21 51 Melee 43 | . . . . . . 9 . . 1 33 . . . . Ram 15 | . . . 11 . 1 . . . . . . . . 3 Kick 9 | . 3 . . . . . . . . . . . . 6 Crush 5 | . . . . . . 1 . 1 . . . . 3 . Escape Stasis 18 | . . . . . . . . . 4 2 . . . 12 Rewire 257 | . . . . . . . . . . 257 . . . . Trap . | . . . . . . . . . . . . . . . Miscellaneous . | . . . . . . . . . . . . . . . Route ------- -11/Scrapyard -10/Materials (discovered 3 exits: *Mat x3) -9/Materials -9/Mines -9/Exiles -8/Mines -8/Materials -7/Factory -7/DSF -6/Factory -6/Extension (discovered 2 exits: *Fac / *Cet) -6/Cetus -6/Archives -6/Hub_04(d) -5/Factory (discovered 2 exits: Upp x2) History --------- Turn | Location | Event 1 | -11/Scrapyard | Discovered new exit (range 0) 1 | -11/Scrapyard | Entered Materials 18 | -10/Materials | Identified exit to Materials 304 | -10/Materials | Build established: Mutant 522 | -10/Materials | Entered another Materials area 522 | -9/Materials | Evolved 2 slots: Utility x1, Weapon x1 914 | -9/Materials | Build established: Scavenger-Gunner 1027 | -9/Materials | Repaired Aluminum Leg 1213 | -9/Materials | Discovered new exit (range 16) 1245 | -9/Materials | Entered Mines 1274 | -9/Mines | Met a Derelict bent on vengeance 1333 | -9/Mines | Lost 8 parts (1p3n1u3w) 1357 | -9/Mines | Core integrity fell below 50% 1425 | -9/Mines | Learned 4 Materials zone layouts 1435 | -9/Mines | Found the Drone Emporium 1446 | -9/Mines | Found Prototype Device 1446 | -9/Mines | Identified Bomb Drone Bay 1492 | -9/Mines | Deemed a non-threat by the Exiles lab entrance 1493 | -9/Mines | Discovered new exit (range 5) 1499 | -9/Mines | Entered Exiles 1537 | -9/Exiles | Met 8R-AWN 1562 | -9/Exiles | Build established: Mutant 1562 | -9/Exiles | Met EX-HEX 1633 | -9/Exiles | Met EX-DEC 1639 | -9/Exiles | Learned location of Zion (-7) 1670 | -9/Exiles | Met EX-BIN 1694 | -9/Exiles | Aligned with FarCom system 1696 | -9/Exiles | Given EX-Vault access code 1730 | -9/Exiles | Opened EX-Vault 1741 | -9/Exiles | Found Field Lobotomy Kit 1814 | -9/Exiles | Warned to stay clear of 0b10 Research branches 2006 | -9/Exiles | Discovered new exit (range 14) 2042 | -9/Exiles | Left Exiles lab with Field Lobotomy Kit 2042 | -9/Exiles | Entered Mines 2288 | -8/Mines | Discovered new exit (range 15) 2303 | -8/Mines | Entered Materials 2303 | -8/Materials | Evolved 2 slots: Utility x2 2749 | -8/Materials | Build established: Tank 2922 | -8/Materials | Discovered new exit (range 13) 3060 | -8/Materials | Entered Factory 3060 | -7/Factory | Evolved 2 slots: Power x1, Propulsion x1 3067 | -7/Factory | Identified exit to DSF 3067 | -7/Factory | Entered DSF 3077 | -7/DSF | Assembled infested the area 3089 | -7/DSF | Additional patrols routed to DSF 3139 | -7/DSF | Discovered new exit (range 17) 3151 | -7/DSF | Assimilated H-61 Shepherd with FLK Orb 3154 | -7/DSF | Destroyed 9 combat bots 3157 | -7/DSF | Core integrity fell below 50% 3183 | -7/DSF | Lost 9 parts (1p2n2u4w) 3196 | -7/DSF | Core integrity fell below 20% 3219 | -7/DSF | Entered Factory 3219 | -6/Factory | Evolved 2 slots: Utility x1, Weapon x1 3497 | -6/Factory | Discovered new exit (range 17) 3532 | -6/Factory | Entered Extension 3543 | -6/Extension | Disrupted transfer network 3822 | -6/Extension | Build established: Assassin 3867 | -6/Extension | Rescued a captive Derelict 3868 | -6/Extension | Rescued a captive Derelict 4169 | -6/Extension | Lost 12 allies 4323 | -6/Extension | Spotted B-75 Beast 4332 | -6/Extension | Spotted B-75 Beast 4340 | -6/Extension | Assimilated B-75 Beast with FLK Orb 4361 | -6/Extension | Destroyed B-75 Beast 4366 | -6/Extension | Lost 4 allies 4387 | -6/Extension | Lost 6 parts (1p3n1u1w) 4511 | -6/Extension | Rescued A7 4522 | -6/Extension | Rescued a captive Derelict 4523 | -6/Extension | Rescued a captive Derelict 4690 | -6/Extension | Rescued a captive Derelict 4691 | -6/Extension | Rescued a captive Derelict 4800 | -6/Extension | Discovered new exit (range 10) 4805 | -6/Extension | Discovered new exit (range 6) 4864 | -6/Extension | Entered Cetus 4864 | -6/Cetus | Accompanied by 12 allies (A7) 4869 | -6/Cetus | Acquired a Cetus Manufacturing Module code from A7 4884 | -6/Cetus | Spotted Cetus Guard 4884 | -6/Cetus | Spotted Cetus Guard 4887 | -6/Cetus | Spotted Cetus Guard 4887 | -6/Cetus | Spotted Cetus Guard 4898 | -6/Cetus | Allies destroyed Cetus Guard 4901 | -6/Cetus | Allies destroyed Cetus Guard 4905 | -6/Cetus | Allies destroyed Cetus Guard 4906 | -6/Cetus | Allies destroyed Cetus Guard 5020 | -6/Cetus | Started Cetus Manufacturing Module 5045 | -6/Cetus | Manufactured an Enhanced Grunt 5066 | -6/Cetus | Lost 4 allies 5070 | -6/Cetus | Manufactured an Enhanced Grunt 5095 | -6/Cetus | Manufactured an Enhanced Grunt 5120 | -6/Cetus | Manufactured an Enhanced Grunt 5145 | -6/Cetus | Manufactured an Enhanced Grunt 5234 | -6/Cetus | Build established: Scavenger-Tank 5238 | -6/Cetus | Escorted A7 to Cetus Mainframe 5257 | -6/Cetus | Discovered new exit (range 16) 5318 | -6/Cetus | Entered Archives 5318 | -6/Archives | Accompanied by 12 allies (A7) 5323 | -6/Archives | Received a hacking code to weaken MAIN.C 5348 | -6/Archives | Met Zhirov 5354 | -6/Archives | Reinforcements dispatched to Archives 5366 | -6/Archives | Read partially decrypted archive contents 5369 | -6/Archives | Discovered new exit (range 16) 5399 | -6/Archives | Reinforcements dispatched to Archives 5411 | -6/Archives | Entered Hub_04(d) 5411 | -6/Hub_04(d) | Accompanied by 10 allies 5579 | -6/Hub_04(d) | Discovered new exit (range 7) 5784 | -6/Hub_04(d) | Network Hub disabled 5809 | -6/Hub_04(d) | Network Hub disabled 6041 | -6/Hub_04(d) | Network Hub disabled 6111 | -6/Hub_04(d) | First assault squad dispatched 6196 | -6/Hub_04(d) | Spotted Lightning 6210 | -6/Hub_04(d) | Spotted Lightning 6211 | -6/Hub_04(d) | Spotted Lightning 6216 | -6/Hub_04(d) | Core integrity fell below 50% 6235 | -6/Hub_04(d) | Spotted Lightning 6246 | -6/Hub_04(d) | Spotted Lightning 6254 | -6/Hub_04(d) | Lost 7 parts (1p1n3u2w) 6267 | -6/Hub_04(d) | System corruption reached 10% 6281 | -6/Hub_04(d) | Identified exit to Factory 6284 | -6/Hub_04(d) | Entered Factory 6284 | -5/Factory | Evolved 2 slots: Utility x1, Weapon x1 6873 | -5/Factory | Fabricated ECM Suite (x1) 6884 | -5/Factory | First assault squad dispatched 7258 | -5/Factory | Lost 3 parts (1n2w) 7689 | -5/Factory | Identified exit to Upper Caves 7711 | -5/Factory | Lost 11 parts (1p2n3u5w) 7898 | -5/Factory | Core integrity fell below 50% 7907 | -5/Factory | System corruption reached 10% 7912 | -5/Factory | Core integrity fell below 20% 7949 | -5/Factory | Destroyed by H-71 Marshal with Heavy Mass Driver Last Messages --------------- 07906_ A bubble of electromagnetic force engulfs the area. 07909_ P-70 Sage resets P-70 Sage, system corruption cleaned. 07912_ Recycling Unit disabled. 07912_ Power Amplifier tumbles out of recycling unit. 07912_ E-15 Imp destroyed. 07913_ K-01 Serf collects debris. 07919_ :5DSEC/UGDG WGVT>&SEP2 K2|R 07920_ K-01 Serf collects debris. 07934_ Penetrated by Slug. 07938_ System corrupted: Energy discharge (-28). 07938_ Acquired Centrium Wheel. 07944_ Connecting with Fabricator... >>Force(Overload) EM_IMPRINTER_OVERLOAD 07944_ ALERT: Suspicious activity at Fabricator F005. Dispatching Investigation squad. 07947_ Fabricator zaps P-70 Sage with an electromagnetic arc. 07948_ P-70 Sage resets P-70 Sage, system corruption cleaned. 07949_ Fabricator zaps P-70 Sage with an electromagnetic arc. 07949_ Penetrated by Slug. Map ----- +----------------------------------------------------+ | ?????????????????????????????????????????????????? | | ?????????????????????????????????????????????????? | | ?????????????????????????????????????????????????? | | ?????????????????????????????????????????????????? | | ?????????????????????????????????????????????????? | | ?????????????????????????????????????????????????? | | ?????????????????????????????????????????????????? | | ?????????????????????????????????????????????????? | | ?????????????????????????????????????????????????? | | ?????????????????????????????????????????????????? | | ?????????????????????????????????????????????????? | | ?????????????????????????????????????????????????? | | ?????????????????????????????????????????????????? | | ?????????????????????????+???????????????????????? | | ????????????????????????? ???????????????????????? | | ????????????????????????? ???????????????????????? | | ????????????????????????? ???????????????????????? | | ???????????????????????## ##?????????????????????? | | ??????????????????????? ?????????????????????? | | ???????????????????????? ??????????????????????? | | ???????????????????????? H ??????????????????????? | | ???????????????????????? ??????????????????????? | | ????????????????????????! ??????????????????????? | | ????????????????????????# #??????????????????????? | | ????????????????????????# #??????????????????????? | | ????????????????????????#@#??????????????????????? | | ?????????????????????####/#####?????o????????????? | | ?????????????????????# % #??????????????????? | | ?????????????????????# #??????????????????? | | ??????????????????Y??# "" #??????????????????? | | ?????????????????????#"""= #??????????????????? | | ?????????????????????#"F p #??????????????????? | | ?????????????????????#""" #??????????????????? | | ?????????????????????#""" [ #??????????????????? | | ?????????????????????#"""p [#??????????????????? | | ?????????????????????# #??????????????????? | | ?????????????????????#####+####??????????????????? | | ?????????????# ######h #????????????????????? | | ?????????????+ #????????????????????? | | #######??????# ###### #????????????????????? | | +?????????????????## ##????????????????????? | | #???????????????????# #?????????????????????? | | #???????????????????# #?????????????????????? | | #???????????????????# #?????????????????????? | | #???????????????????# #?????????????????????? | | #???????????????????# #?????????????????????? | | +???????????????????# #?????????????????????? | | #???????????????????# #??#######????########? | | #???????????????????# #??# ?????# #? | | ###???????????????????# #??# ?????# #? | +----------------------------------------------------+ Best States ------------- Heat Dissipation 95 Energy Generation 45 Energy Capacity 600 Matter Stores 300 Matter Capacity 300 Sight Range 16 Terrain Scan Range 20 Terrain Scan Density 110 ECM Strength 1 Armor Coverage 600 Propulsion Shielding 66 Weapon Shielding 66 Evasion (%) 55 Launcher Accuracy 30 Target Analysis 6 Recoil Reduction 3 Defensive Hacking 14 Item Schematics ----------------- ECM Suite | -8/Materials | Scanalyzed Cld. Plasma Cannon | -5/Factory | Scanalyzed Robot Schematics ------------------ None Fabricated ------------ ECM Suite | x1 | -5/Factory Alien Tech Used ----------------- None Achievements -------------- None Challenges ------------ None Game ------ Seed EtherialSignalActivator Manual? 0 Play Time 01:03:27 Cumulative 698.2 hours Start 2024.03.07 @ 22:18:15 End 2024.03.07 @ 23:23:33 Sessions 1 Manual Loads 0 Difficulty Rogue Special Mode None Game No. 728 Rogue 453 Adventurer 123 Explorer 152 Win Type - Total 26 Types 20/0/4/1/0/0/0/1/0 Lore% 83 Gallery% 91 Achievement% 76 Wizard Run 0 Options --------- Layout 0 ASCII 0 Keyboard 1 Movement Numpad Keybinds 0 Fullscreen 2 Font 18/Terminus Map View 76x50 Zoom Use 3% Tactical HUD 1 Map Filters NONE Filters NONE Steam 1 RUN: 955b6394-ab3f-4758-a618-1a54ffa16441